bitfinex/quotes_SOLUSD_20241024
["timestamp","ask_amount","ask_price","bid_price","bid_amount"]
[1729731245965,24.027864,172.03,171.92,0.1]
[1729731246166,24.027864,172.01,171.98,36.52557796]
[1729731246372,1.16211707,172.0,171.98,36.52557796]
[1729731246779,1.16211707,172.0,171.99,36.52557796]
[1729731246962,24.93900107,172.0,171.99,36.52557796]
[1729731247780,23.776884,172.0,171.99,36.52557796]
[1729731251776,1.16211707,172.04,171.99,36.52557796]
[1729731251978,25.06449107,172.06,172.03,36.52557796]
[1729731252283,16.21481707,172.07,172.05,23.37176572]
[1729731252483,1.16211707,172.07,172.06,23.37176572]
[1729731252673,1.16211707,172.07,171.99,93.48706288]
[1729731252674,1.16211707,172.07,172.05,23.37176572]
[1729731253271,1.16211707,172.08,172.05,23.37176572]
[1729731254087,24.027864,172.07,172.05,23.37176572]
[1729731254289,24.027864,172.07,171.99,93.48706288]
[1729731254290,23.776884,172.05,172.04,23.37176572]
[1729731255299,16.41301707,172.16,172.04,23.37176572]
[1729731255599,23.37176572,172.15,172.1,23.37176572]
[1729731255895,6.97151707,172.14,172.09,23.37176572]
[1729731256192,30.34328279,172.14,172.09,23.37176572]
[1729731256395,30.34328279,172.14,172.08,23.37176572]
[1729731256704,23.49725572,172.12,172.07,23.37176572]
[1729731256879,0.12549,172.1,172.07,23.37176572]
[1729731257287,0.25098,172.1,172.06,23.37176572]
[1729731258603,38.87364572,172.08,172.02,23.37176572]
[1729731258790,38.87364572,172.08,171.97,15.2038]
[1729731258791,0.25098,172.06,172.03,23.37176572]
[1729731260303,0.25098,172.06,172.02,23.37176572]
[1729731262098,0.25098,172.06,172.04,23.37176572]
[1729731262399,1.16211707,172.08,172.05,23.37176572]
[1729731262699,1.16211707,172.11,172.07,23.37176572]
[1729731263530,6.97231707,172.11,172.07,23.37176572]
[1729731264002,0.12549,172.1,172.01,0.1]
[1729731264191,1.16211707,172.11,172.09,23.37176572]
[1729731264397,15.561,172.16,172.01,0.1]
[1729731264398,1.16211707,172.15,172.1,36.48835506]
[1729731264987,1.16211707,172.15,172.13,36.48835506]
[1729731265198,1.16211707,172.15,172.14,36.48835506]
[1729731266303,1.16211707,172.17,172.14,36.48835506]
[1729731266503,1.16211707,172.19,172.16,36.48835506]
[1729731266711,1.16211707,172.19,172.18,36.48835506]
[1729731267608,1.16211707,172.19,172.17,36.48835506]
[1729731268407,1.16211707,172.19,172.16,36.48835506]
[1729731268583,1.16211707,172.19,172.17,36.48835506]
[1729731269010,1.16211707,172.19,172.18,36.48835506]
[1729731269011,1.41309707,172.19,172.18,36.48835506]
[1729731269386,1.41309707,172.19,172.17,36.48835506]
[1729731269881,1.41309707,172.19,172.18,36.48835506]
[1729731270499,1.16211707,172.2,172.18,36.48835506]
[1729731270690,1.41309707,172.23,172.19,36.48835506]
[1729731272009,43.70765213,172.23,172.18,36.48835506]
[1729731272509,43.70765213,172.23,172.2,36.48835506]
[1729731272510,1.41309707,172.23,172.2,36.48835506]
[1729731272896,1.16211707,172.23,172.2,36.48835506]
[1729731273096,1.16211707,172.23,172.22,36.48835506]
[1729731273314,1.16211707,172.23,172.21,36.48835506]
[1729731274000,1.16211707,172.24,172.22,36.48835506]
[1729731274205,1.16211707,172.24,172.2,36.48835506]
[1729731274507,36.48835506,172.22,172.17,36.48835506]
[1729731274689,1.16211707,172.21,172.17,36.48835506]
[1729731275317,0.25098,172.2,172.18,36.48835506]
[1729731275696,1.41309707,172.2,172.18,36.48835506]
[1729731276708,0.25098,172.2,172.18,36.48835506]
[1729731277011,0.25098,172.21,172.18,36.48835506]
[1729731277408,0.25098,172.21,172.19,36.48835506]
[1729731279297,0.25098,172.21,172.18,36.48835506]
[1729731281295,0.25098,172.21,172.19,36.48835506]
[1729731281496,0.25098,172.21,172.2,36.48835506]
[1729731283121,0.25098,172.21,172.19,36.48835506]
[1729731286321,0.25098,172.22,172.19,36.48835506]
[1729731287319,0.25098,172.22,172.2,36.48835506]
[1729731287624,0.25098,172.22,172.19,36.48835506]
[1729731288419,0.25098,172.22,172.19,23.3355582]
[1729731288719,0.25098,172.22,172.18,23.3355582]
[1729731288922,29.3932382,172.22,172.17,11.6677791]
[1729731289225,0.25098,172.2,172.17,23.3355582]
[1729731289616,0.25098,172.18,172.1,15.5112]
[1729731289797,1.41309707,172.18,172.15,23.3355582]
[1729731291126,24.74865527,172.18,172.14,23.3355582]
[1729731291426,24.74865527,172.18,172.08,93.3422328]
[1729731291427,24.74865527,172.18,172.13,23.3355582]
[1729731291801,30.55675527,172.18,172.14,23.3355582]
[1729731292399,43.70492947,172.18,172.13,36.4837324]
[1729731292599,7.22119707,172.18,172.11,36.4837324]
[1729731292911,36.7347124,172.15,172.1,36.4837324]
[1729731293124,0.25098,172.13,172.11,36.4837324]
[1729731294427,0.25098,172.13,172.1,36.4837324]
[1729731294809,0.25098,172.13,172.06,15.5112]
[1729731294810,0.25098,172.13,172.11,36.4837324]
[1729731295006,1.16211707,172.14,172.12,36.4837324]
[1729731295212,1.41309707,172.16,172.13,36.4837324]
[1729731297228,1.41309707,172.16,172.12,36.4837324]
[1729731299432,1.41309707,172.16,172.15,36.4837324]
[1729731299728,1.16211707,172.19,172.15,36.4837324]
[1729731300035,1.16211707,172.19,172.17,36.4837324]
[1729731300634,1.16211707,172.19,172.16,36.4837324]
[1729731301630,0.25098,172.18,172.16,36.4837324]
[1729731302533,0.25098,172.18,172.06,15.6112]
[1729731302822,0.25098,172.18,172.14,36.4837324]
[1729731303232,36.7347124,172.18,172.14,36.4837324]
[1729731303434,0.25098,172.16,172.15,36.4837324]
[1729731304324,1.41309707,172.16,172.15,36.4837324]
[1729731304531,0.25098,172.16,172.15,36.4837324]
[1729731306337,0.25098,172.17,172.15,36.4837324]
[1729731307216,1.16211707,172.18,172.15,36.4837324]
[1729731307418,0.25098,172.18,172.16,36.4837324]
[1729731307731,1.16211707,172.19,172.16,36.4837324]
[1729731308631,1.16211707,172.19,172.17,36.4837324]
[1729731309014,0.25098,172.18,172.17,36.4837324]
[1729731309208,1.16211707,172.23,172.17,72.9674648]
[1729731309409,21.83,172.3,172.22,36.4837324]
[1729731309642,1.16211707,172.29,172.27,36.4837324]
[1729731309819,1.16211707,172.31,172.28,36.4837324]
[1729731310035,1.16211707,172.33,172.3,36.4837324]
[1729731310331,36.4837324,172.32,172.27,36.4837324]
[1729731310535,1.16211707,172.31,172.27,36.4837324]
[1729731311030,0.25098,172.3,172.26,36.4837324]
[1729731311226,36.4837324,172.3,172.25,36.4837324]
[1729731311427,1.16211707,172.29,172.26,36.4837324]
[1729731311626,1.16211707,172.29,172.26,18.2418662]
[1729731311932,36.4837324,172.28,172.23,36.4837324]
[1729731312115,1.16211707,172.27,172.23,36.4837324]
[1729731312313,1.16211707,172.27,172.25,36.4837324]
[1729731312534,1.41309707,172.29,172.25,36.4837324]
[1729731313515,37.89682947,172.29,172.24,36.4837324]
[1729731314740,0.25098,172.25,172.21,36.4837324]
[1729731314928,1.41309707,172.25,172.21,36.4837324]
[1729731316740,1.41309707,172.25,172.22,36.4837324]
[1729731316921,0.25098,172.26,172.24,36.4837324]
[1729731317118,56.4837324,172.3,172.17,42.6701324]
[1729731317119,1.16211707,172.29,172.25,36.4837324]
[1729731317335,1.16211707,172.29,172.17,42.7701324]
[1729731317336,0.25098,172.28,172.26,36.4837324]
[1729731317524,24.027864,172.28,172.26,36.4837324]
[1729731317742,15.3944,172.34,172.27,36.4837324]
[1729731317916,15.3944,172.34,172.33,36.4837324]
[1729731318244,36.4837324,172.34,172.26,36.4837324]
[1729731318444,18.2418662,172.32,172.27,18.2418662]
[1729731318739,36.4837324,172.33,172.28,36.4837324]
[1729731319130,0.25098,172.32,172.29,36.4837324]
[1729731319745,0.25098,172.3,172.29,36.4837324]
[1729731319941,25.18998107,172.3,172.29,36.4837324]
[1729731320142,24.027864,172.3,172.29,36.4837324]
[1729731321437,23.776884,172.3,172.29,36.4837324]
[1729731322542,1.16211707,172.33,172.29,36.4837324]
[1729731322748,1.16211707,172.35,172.31,36.4837324]
[1729731323536,24.027864,172.34,172.3,36.4837324]
[1729731323740,23.776884,172.32,172.31,36.4837324]
[1729731324544,1.16211707,172.35,172.31,36.4837324]
[1729731324739,1.16211707,172.36,172.34,36.4837324]
[1729731325245,1.16211707,172.36,172.32,36.4837324]
[1729731325750,21.16211707,172.38,172.34,36.4837324]
[1729731325945,1.16211707,172.38,172.34,36.4837324]
[1729731326247,37.64584947,172.38,172.33,36.4837324]
[1729731326546,36.4837324,172.37,172.32,36.4837324]
[1729731326719,1.16211707,172.36,172.32,36.4837324]
[1729731326923,24.027864,172.35,172.32,36.4837324]
[1729731327645,23.776884,172.33,172.3,36.4837324]
[1729731328558,23.776884,172.31,172.27,36.4837324]
[1729731328846,23.776884,172.31,172.22,6.3683]
[1729731328847,23.776884,172.29,172.28,36.4837324]
[1729731333247,23.776884,172.31,172.28,36.4837324]
[1729731333461,23.776884,172.31,172.3,36.4837324]
[1729731333635,20.0,172.36,172.3,36.4837324]
[1729731333830,1.16211707,172.35,172.32,36.4837324]
[1729731334037,1.16211707,172.35,172.31,36.4837324]
[1729731334236,37.64584947,172.35,172.3,36.4837324]
[1729731334451,37.64584947,172.35,172.26,36.4837324]
[1729731334452,1.16211707,172.35,172.31,36.4837324]
[1729731334951,24.027864,172.34,172.31,36.4837324]
[1729731335147,24.027864,172.32,172.29,36.4837324]
[1729731335349,23.776884,172.3,172.29,36.4837324]
[1729731335735,23.776884,172.3,172.28,36.4837324]
[1729731336332,23.776884,172.3,172.22,6.3683]
[1729731336333,23.776884,172.28,172.26,36.4837324]
[1729731336965,23.776884,172.28,172.27,36.4837324]
[1729731337656,24.027864,172.28,172.27,36.4837324]
[1729731338534,23.776884,172.28,172.27,36.4837324]
[1729731339834,1.16211707,172.32,172.27,36.4837324]
[1729731340041,1.16211707,172.32,172.26,36.4837324]
[1729731340042,1.16211707,172.34,172.3,36.4837324]
[1729731340436,1.16211707,172.34,172.31,36.4837324]
[1729731340659,1.16211707,172.34,172.3,36.4837324]
[1729731341246,15.4471,172.35,172.33,36.4837324]
[1729731341738,15.4471,172.35,172.32,36.4837324]
[1729731342540,23.776884,172.33,172.32,36.4837324]
[1729731342733,23.776884,172.33,172.31,36.4837324]
[1729731343343,23.776884,172.33,172.32,18.2418662]
[1729731343654,23.776884,172.33,172.32,36.4837324]
[1729731347658,0.25098,172.38,172.32,36.4837324]
[1729731347866,21.2481,172.39,172.28,0.1]
[1729731347867,1.16211707,172.4,172.37,36.4837324]
[1729731348161,1.16211707,172.43,172.39,36.4837324]
[1729731348357,16.60921707,172.44,172.42,36.4837324]
[1729731348577,22.40841707,172.44,172.4,36.4837324]
[1729731348760,53.09294947,172.44,172.38,36.4837324]
[1729731349148,36.4837324,172.43,172.37,36.4837324]
[1729731349462,36.4837324,172.47,172.42,36.4837324]
[1729731349659,37.64584947,172.47,172.42,36.4837324]
[1729731350046,1.16211707,172.47,172.42,36.4837324]
[1729731350249,36.4837324,172.48,172.43,36.4837324]
[1729731350952,0.6148413,172.49,172.47,36.4837324]
[1729731351455,0.6148413,172.49,172.46,36.4837324]
[1729731351769,36.4837324,172.47,172.42,36.4837324]
[1729731351949,36.4837324,172.47,172.41,36.4837324]
[1729731352463,36.4837324,172.47,172.42,36.4837324]
[1729731352644,23.776884,172.46,172.43,36.4837324]
[1729731352849,23.776884,172.47,172.43,36.4837324]
[1729731353440,23.776884,172.47,172.39,21.9222]
[1729731353441,60.2606164,172.47,172.42,36.4837324]
[1729731353644,0.6148413,172.49,172.4,36.4837324]
[1729731353645,60.2606164,172.45,172.4,36.4837324]
[1729731354058,36.4837324,172.44,172.39,36.4837324]
[1729731354254,23.776884,172.4,172.36,36.4837324]
[1729731354458,23.776884,172.4,172.37,36.4837324]
[1729731354767,23.776884,172.41,172.37,36.4837324]
[1729731355145,23.776884,172.41,172.38,36.4837324]
[1729731355340,23.776884,172.38,172.27,0.1]
[1729731355557,36.4837324,172.35,172.3,36.4837324]
[1729731355770,23.776884,172.35,172.31,36.4837324]
[1729731356464,36.4837324,172.34,172.29,36.4837324]
[1729731356655,60.2606164,172.35,172.3,36.4837324]
[1729731356968,23.776884,172.35,172.3,36.4837324]
[1729731357148,23.776884,172.35,172.31,36.4837324]
[1729731357545,21.16211707,172.43,172.34,36.4837324]
[1729731357762,36.4837324,172.42,172.37,36.4837324]
[1729731358367,15.6029,172.44,172.34,15.5616]
[1729731358574,74.97176805,172.44,172.39,58.20675098]
[1729731359350,24.027864,172.43,172.39,58.20675098]
[1729731359543,82.23461498,172.43,172.38,58.20675098]
[1729731359753,73.80965098,172.44,172.39,58.20675098]
[1729731360973,81.98363498,172.43,172.38,58.20675098]
[1729731361274,83.14575205,172.43,172.37,58.20675098]
[1729731362053,23.776884,172.41,172.37,58.20675098]
[1729731362256,23.776884,172.41,172.38,58.20675098]
[1729731362567,81.98363498,172.43,172.38,58.20675098]
[1729731362965,23.776884,172.43,172.41,58.20675098]
[1729731363171,59.36886805,172.48,172.42,58.20675098]
[1729731363363,1.16211707,172.48,172.42,58.20675098]
[1729731363551,59.36886805,172.48,172.42,58.20675098]
[1729731363868,59.98370935,172.49,172.44,58.20675098]
[1729731364176,0.6148413,172.49,172.47,58.20675098]
[1729731364469,0.6148413,172.49,172.48,58.20675098]
[1729731365650,0.4,172.55,172.51,0.1]
[1729731365975,0.4,172.55,172.54,21.6189]
[1729731366157,0.4,172.55,172.54,79.92565098]
[1729731366356,0.4,172.55,172.54,85.95565098]
[1729731366759,0.4,172.55,172.54,70.39405098]
[1729731366972,0.4,172.55,172.54,64.33675098]
[1729731367278,0.4,172.55,172.53,58.20675098]
[1729731367568,0.4,172.55,172.54,58.20675098]
[1729731368267,0.4,172.55,172.52,58.20675098]
[1729731368477,58.60675098,172.55,172.5,58.20675098]
[1729731368777,0.4,172.55,172.48,58.20675098]
[1729731368954,58.20675098,172.54,172.49,58.20675098]
[1729731369767,23.776884,172.54,172.5,58.20675098]
[1729731369953,23.776884,172.54,172.51,58.20675098]
[1729731370370,0.4,172.55,172.53,58.20675098]
[1729731370571,0.4,172.55,172.54,58.20675098]
[1729731374174,0.4,172.55,172.5,0.2]
[1729731374359,0.4,172.55,172.53,58.20675098]
[1729731374757,0.4,172.55,172.54,58.20675098]
[1729731375171,0.4,172.55,172.51,0.1]
[1729731375172,0.4,172.55,172.53,58.20675098]
[1729731375657,0.4,172.55,172.52,58.20675098]
[1729731375976,0.4,172.55,172.51,58.20675098]
[1729731376349,0.4,172.55,172.53,58.20675098]
[1729731377073,0.4,172.55,172.54,58.20675098]
[1729731378155,0.4,172.55,172.53,58.20675098]
[1729731379062,0.4,172.55,172.52,58.20675098]
[1729731379458,58.20675098,172.54,172.49,58.20675098]
[1729731379957,0.4,172.55,172.52,58.20675098]
[1729731381469,0.4,172.55,172.53,58.20675098]
[1729731381673,0.4,172.55,172.54,58.20675098]
[1729731382765,0.4,172.55,172.54,58.30675098]
[1729731383077,0.4,172.55,172.54,78.40675098]
[1729731383670,0.4,172.55,172.54,58.40675098]
[1729731384061,0.4,172.55,172.54,58.30675098]
[1729731384554,0.6148413,172.66,172.54,58.30675098]
[1729731384555,0.6148413,172.66,172.59,0.1]
[1729731384884,0.6148413,172.66,172.57,0.1]
[1729731384885,0.6148413,172.66,172.63,58.20675098]
[1729731385180,58.20675098,172.65,172.6,58.20675098]
[1729731385372,58.82159228,172.66,172.61,58.20675098]
[1729731385868,0.6148413,172.66,172.62,58.20675098]
[1729731386064,58.82159228,172.66,172.61,58.20675098]
[1729731387462,0.6148413,172.66,172.62,58.20675098]
[1729731387976,0.6148413,172.66,172.63,58.20675098]
[1729731388679,0.6148413,172.66,172.62,58.20675098]
[1729731390465,23.776884,172.65,172.61,58.20675098]
[1729731390684,81.98363498,172.65,172.6,58.20675098]
[1729731390983,58.20675098,172.64,172.59,58.20675098]
[1729731391182,58.20675098,172.64,172.54,20.0]
[1729731391183,0.6148413,172.66,172.62,58.20675098]
[1729731391885,0.6148413,172.66,172.64,29.10337549]
[1729731392089,0.6148413,172.66,172.64,58.20675098]
[1729731392585,0.6148413,172.66,172.65,58.20675098]
[1729731393777,0.6148413,172.66,172.65,58.30675098]
[1729731394162,0.6148413,172.66,172.65,78.30675098]
[1729731394364,0.6148413,172.66,172.65,78.40675098]
[1729731394587,0.6148413,172.66,172.65,78.20675098]
[1729731394779,0.6148413,172.66,172.65,78.30675098]
[1729731395295,0.6148413,172.66,172.65,78.40675098]
[1729731395474,0.6148413,172.66,172.65,78.20675098]
[1729731395780,0.6148413,172.66,172.65,58.20675098]
[1729731395984,0.6148413,172.66,172.64,58.20675098]
[1729731396675,0.6148413,172.66,172.61,0.1]
[1729731396676,0.6148413,172.66,172.63,58.20675098]
[1729731397064,0.6148413,172.66,172.6,0.2]
[1729731397269,0.6148413,172.66,172.65,58.20675098]
[1729731398386,0.6148413,172.66,172.65,78.40675098]
[1729731399887,0.6148413,172.66,172.65,78.30675098]
[1729731400184,0.6148413,172.66,172.65,58.30675098]
[1729731400390,0.6148413,172.66,172.65,78.40675098]
[1729731400583,0.6148413,172.66,172.65,79.56452784]
[1729731400884,0.6148413,172.66,172.65,78.20675098]
[1729731401102,0.6148413,172.66,172.65,78.30675098]
[1729731401886,0.6148413,172.66,172.65,79.56460097]
[1729731402278,0.6148413,172.66,172.65,78.40675098]
[1729731402879,0.6148413,172.66,172.65,78.20675098]
[1729731405587,0.6148413,172.66,172.65,58.20675098]
[1729731408691,0.6148413,172.66,172.64,58.20675098]
[1729731409474,29.71821679,172.66,172.62,58.20675098]
[1729731409677,58.20675098,172.65,172.6,58.20675098]
[1729731409883,0.6148413,172.66,172.63,58.20675098]
[1729731410996,0.6148413,172.66,172.64,58.20675098]
[1729731411197,58.20675098,172.65,172.58,0.1]
[1729731411376,58.20675098,172.65,172.6,58.20675098]
[1729731411576,58.82159228,172.66,172.61,58.20675098]
[1729731411983,0.6148413,172.66,172.62,58.20675098]
[1729731412304,0.6148413,172.66,172.63,58.20675098]
[1729731412690,0.6148413,172.66,172.62,58.20675098]
[1729731414096,0.6148413,172.66,172.65,58.20675098]
[1729731414300,0.6148413,172.66,172.65,36.24075162]
[1729731414903,6.31366776,172.7,172.65,36.24075162]
[1729731415196,6.31366776,172.7,172.66,36.24075162]
[1729731415798,6.31366776,172.7,172.67,36.24075162]
[1729731415989,6.31366776,172.7,172.68,36.24075162]
[1729731416305,6.31366776,172.7,172.67,57.99536294]
[1729731418008,6.31366776,172.7,172.66,57.99536294]
[1729731418904,57.99536294,172.68,172.63,57.99536294]
[1729731419688,57.99536294,172.67,172.62,57.99536294]
[1729731419886,57.99536294,172.66,172.61,64.12536294]
[1729731420400,80.30836294,172.65,172.61,6.13]
[1729731420898,80.30836294,172.65,172.6,57.99536294]
[1729731421301,22.313,172.65,172.61,57.99536294]
[1729731421507,22.313,172.65,172.62,57.99536294]
[1729731421686,6.31366776,172.7,172.64,57.99536294]
[1729731421687,6.25,172.69,172.64,57.99536294]
[1729731421887,6.25,172.69,172.65,57.99536294]
[1729731422608,22.37666776,172.7,172.68,57.99536294]
[1729731423489,6.31366776,172.7,172.69,57.99536294]
[1729731424199,6.31366776,172.7,172.66,57.99536294]
[1729731424396,6.31366776,172.7,172.68,57.99536294]
[1729731425481,6.31366776,172.7,172.69,57.99536294]
[1729731431992,6.31366776,172.7,172.64,0.2]
[1729731432193,6.31366776,172.7,172.69,57.99536294]
[1729731435016,6.31366776,172.7,172.68,57.99536294]
[1729731435315,6.31366776,172.7,172.66,57.99536294]
[1729731435492,6.31366776,172.7,172.67,57.99536294]
[1729731436189,35.31134923,172.7,172.64,57.99536294]
[1729731436385,57.99536294,172.68,172.63,57.99536294]
[1729731437195,57.99536294,172.69,172.64,57.99536294]
[1729731437502,57.99536294,172.67,172.62,57.99536294]
[1729731437890,59.15748001,172.66,172.61,57.99536294]
[1729731438114,73.23766294,172.67,172.62,57.99536294]
[1729731438416,15.2423,172.67,172.63,36.27699174]
[1729731438596,16.40441707,172.67,172.63,36.27699174]
[1729731438796,52.68140881,172.67,172.62,36.27699174]
[1729731439014,16.40441707,172.67,172.63,36.27699174]
[1729731439391,16.40441707,172.67,172.64,36.27699174]
[1729731439600,15.2423,172.67,172.64,36.27699174]
[1729731440711,15.2423,172.67,172.63,36.27699174]
[1729731440897,6.3261,172.66,172.62,36.27699174]
[1729731441516,6.3261,172.66,172.63,36.27699174]
[1729731442093,6.3261,172.66,172.62,36.27699174]
[1729731444612,1.41309707,172.65,172.61,36.27699174]
[1729731445196,43.76520881,172.66,172.61,36.27699174]
[1729731446022,0.25098,172.65,172.61,36.27699174]
[1729731446520,7.48821707,172.66,172.62,36.27699174]
[1729731446719,7.48821707,172.66,172.63,36.27699174]
[1729731447013,43.76520881,172.66,172.61,36.27699174]
[1729731447414,7.48821707,172.66,172.62,36.27699174]
[1729731449223,15.2423,172.67,172.65,36.27699174]
[1729731449516,6.31366776,172.7,172.66,36.27699174]
[1729731449727,6.31366776,172.7,172.62,36.27699174]
[1729731449728,6.31366776,172.7,172.69,36.27699174]
[1729731455519,6.31366776,172.7,172.67,36.27699174]
[1729731456115,6.31366776,172.7,172.66,36.27699174]
[1729731456320,42.5906595,172.7,172.65,36.27699174]
[1729731456529,37.43910881,172.69,172.64,36.27699174]
[1729731456703,0.25098,172.68,172.64,36.27699174]
[1729731456906,36.27699174,172.69,172.64,36.27699174]
[1729731457110,42.5906595,172.7,172.65,36.27699174]
[1729731457515,36.27699174,172.69,172.64,36.27699174]
[1729731459528,36.27699174,172.68,172.63,36.27699174]
[1729731459716,36.27699174,172.69,172.64,36.27699174]
[1729731460029,37.43910881,172.69,172.64,36.27699174]
[1729731461325,36.27699174,172.68,172.63,36.27699174]
[1729731461711,37.43910881,172.67,172.62,36.27699174]
[1729731462232,0.25098,172.68,172.64,36.27699174]
[1729731462427,36.52797174,172.68,172.63,36.27699174]
[1729731462808,52.60760881,172.69,172.64,36.27699174]
[1729731463209,16.33061707,172.69,172.65,36.27699174]
[1729731463717,16.33061707,172.69,172.64,36.27699174]
[1729731464108,6.31366776,172.7,172.68,36.27699174]
[1729731464510,6.31366776,172.7,172.69,36.27699174]
[1729731465836,6.31366776,172.7,172.68,36.27699174]
[1729731466432,6.31366776,172.7,172.66,36.27699174]
[1729731466814,42.5906595,172.7,172.65,36.27699174]
[1729731468133,6.31366776,172.7,172.66,36.27699174]
[1729731469336,6.31366776,172.7,172.67,36.27699174]
[1729731469638,1.41309707,172.69,172.66,36.27699174]
[1729731470136,0.25098,172.69,172.67,36.27699174]
[1729731470450,0.25098,172.69,172.66,36.27699174]
[1729731470635,0.25098,172.69,172.67,36.27699174]
[1729731470942,7.47578483,172.7,172.67,36.27699174]
[1729731471117,6.31366776,172.7,172.68,36.27699174]
[1729731473034,6.31366776,172.7,172.67,36.27699174]
[1729731473832,6.31366776,172.7,172.66,36.27699174]
[1729731474248,6.31366776,172.7,172.68,36.27699174]
[1729731474539,6.31366776,172.7,172.69,36.27699174]
[1729731475725,6.31366776,172.7,172.68,36.27699174]
[1729731475931,6.31366776,172.7,172.67,36.27699174]
[1729731477540,6.31366776,172.7,172.68,36.27699174]
[1729731480236,6.31366776,172.7,172.69,36.27699174]
[1729731492553,21.43486776,172.7,172.55,2.66055779]
[1729731492850,22.59698483,172.7,172.67,36.27699174]
[1729731493029,21.43486776,172.7,172.67,36.27699174]
[1729731493227,21.43486776,172.7,172.69,36.27699174]
[1729731495743,6.31366776,172.7,172.69,36.27699174]
[1729731496651,6.31366776,172.7,172.6,15.1617]
[1729731496835,6.31366776,172.7,172.56,6.4361]
[1729731496836,0.25098,172.68,172.63,36.27699174]
[1729731497044,0.25098,172.68,172.61,6.13]
[1729731497045,36.52797174,172.68,172.62,36.27699174]
[1729731497231,1.16211707,172.67,172.63,36.27699174]
[1729731497431,0.25098,172.66,172.62,36.27699174]
[1729731497632,36.52797174,172.66,172.61,42.40699174]
[1729731497936,1.16211707,172.65,172.61,36.27699174]
[1729731498946,36.27699174,172.63,172.58,36.27699174]
[1729731499248,37.43910881,172.63,172.58,36.27699174]
[1729731499430,36.27699174,172.62,172.57,36.27699174]
[1729731500655,37.43910881,172.63,172.58,36.27699174]
[1729731500956,0.25098,172.62,172.58,36.27699174]
[1729731501134,15.2212,172.67,172.61,36.27699174]
[1729731501135,15.1212,172.67,172.61,36.27699174]
[1729731501451,36.27699174,172.64,172.59,36.27699174]
[1729731501651,1.16211707,172.63,172.59,36.27699174]
[1729731501848,37.43910881,172.63,172.58,36.27699174]
[1729731502050,36.27699174,172.62,172.57,36.27699174]
[1729731503452,0.12549,172.62,172.59,36.27699174]
[1729731503677,1.16211707,172.64,172.61,36.27699174]
[1729731504134,1.16211707,172.64,172.6,36.27699174]
[1729731504337,37.43910881,172.64,172.59,36.27699174]
[1729731505039,1.16211707,172.64,172.6,36.27699174]
[1729731505539,37.43910881,172.64,172.59,36.27699174]
[1729731505946,36.27699174,172.64,172.6,36.27699174]
[1729731507446,36.27699174,172.64,172.59,36.27699174]
[1729731507847,19.55159294,172.63,172.57,18.13849587]
[1729731508050,36.27699174,172.62,172.57,36.27699174]
[1729731509345,36.27699174,172.62,172.58,36.27699174]
[1729731509541,42.56547174,172.63,172.58,36.27699174]
[1729731509850,36.27699174,172.61,172.56,36.27699174]
[1729731510052,36.27699174,172.61,172.52,15.1617]
[1729731510053,1.16211707,172.62,172.58,36.27699174]
[1729731510243,1.16211707,172.62,172.59,36.27699174]
[1729731510443,43.72758881,172.63,172.58,36.27699174]
[1729731510864,6.0375,172.63,172.59,36.27699174]
[1729731511058,36.27699174,172.64,172.59,36.27699174]
[1729731511457,36.27699174,172.64,172.6,36.27699174]
[1729731511458,0.25098,172.64,172.6,36.27699174]
[1729731511961,1.16211707,172.65,172.62,36.27699174]
[1729731512260,6.31366776,172.7,172.64,36.27699174]
[1729731512463,6.31366776,172.7,172.67,36.27699174]
[1729731512767,6.31366776,172.7,172.66,36.27699174]
[1729731513343,36.27699174,172.68,172.63,36.27699174]
[1729731513557,1.16211707,172.69,172.55,6.19147416]
[1729731513558,37.43910881,172.67,172.62,36.27699174]
[1729731513751,36.27699174,172.65,172.6,36.27699174]
[1729731514443,36.27699174,172.66,172.61,36.27699174]
[1729731514653,1.16211707,172.65,172.61,36.27699174]
[1729731516364,36.52797174,172.64,172.59,36.27699174]
[1729731516540,0.25098,172.64,172.61,36.27699174]
[1729731516742,1.41309707,172.65,172.62,36.27699174]
[1729731516942,1.41309707,172.66,172.62,36.27699174]
[1729731517264,0.25098,172.66,172.63,36.27699174]
[1729731517558,0.25098,172.68,172.64,36.27699174]
[1729731517862,36.27699174,172.66,172.61,36.27699174]
[1729731518545,36.27699174,172.65,172.6,36.27699174]
[1729731518765,36.27699174,172.66,172.61,36.27699174]
[1729731519066,36.27699174,172.65,172.6,36.27699174]
[1729731519237,37.43910881,172.66,172.61,36.27699174]
[1729731519440,1.16211707,172.66,172.62,36.27699174]
[1729731519639,0.25098,172.66,172.62,36.27699174]
[1729731519838,1.41309707,172.66,172.62,36.27699174]
[1729731520143,37.69008881,172.66,172.61,36.27699174]
[1729731520352,36.27699174,172.64,172.59,36.27699174]
[1729731520552,36.27699174,172.65,172.6,36.27699174]
[1729731520946,1.16211707,172.64,172.6,36.27699174]